Cogmind - Beta 15 X1 @@@ ROGUE MODE // 2024.11.13 @ 20:37:07 Player: Plexion Result: Destroyed by G-50 Soldier with Backup Laser III Performance ------------- Evolutions (4) 2000 Regions Visited (7) 1400 Robots Destroyed (118) 590 Value Destroyed (3642) 3642 Prototype IDs (15) 300 Alien Tech Used (0) 0 Bonus (1663) 1663 TOTAL SCORE: 9595 Bonus ------- High Alert Combat Kills 442 Follower Combat Kills 971 Registered with UFD 300 Friendly Fire -50 Cogmind --------- Core Integrity 0/850 Matter 300/300 Energy 484/490 System Corruption 17% Temperature Cool (9) Movement Walking (260) Ox2 Location -6/Extension Parts ------- > --- POWER (2) -------- Reinforced Deuterium Engine Angular Momentum Engine > --- PROPULSION (4) --- Flexi-carbon Leg Flexi-carbon Leg > --- UTILITY (7) ------ Advanced Heat Sink Huge Storage Unit Backup Plating III > --- WEAPON (2) ------- Power Maul Ripper > --- INVENTORY (25) --- Carbon-fiber Leg Carbon-fiber Leg Carbon-fiber Leg Flexi-carbon Leg Flexi-carbon Leg Multireflex Exoskeleton Multireflex Exoskeleton High-capacity Storage Unit Long-range Terrain Scanner Powered Cannon Heavy Rocket Launcher Precision Rocket Launcher Plasma Cutter CPS Tube (2) CPS Tube (2) CPS Tube (2) Multitool Large Botcube Peak State ------------ > --- POWER ------------ Light Ion Engine > --- PROPULSION ------- Flexi-carbon Leg Flexi-carbon Leg Multireflex Exoskeleton > --- UTILITY ---------- Advanced Heat Sink Huge Storage Unit Seismic Detector Kinecellerator Powered Armor Hacking Suite System Guard > --- WEAPON ----------- Coil Gun Coil Gun > --- INVENTORY -------- Light Treads Multireflex Exoskeleton Multireflex Exoskeleton High-capacity Storage Unit Long-range Terrain Scanner Phase Cannon Powered Cannon Coil Gun Coil Gun Rocket Launcher Precision Rocket Launcher Dirty Datajack Plasma Cutter CPS Tube CPS Tube CPS Tube Multitool Power Maul Greatsword Large Botcube [Rating: 68] Favorites ----------- Power Ion Engine Engine Ion Engine Power Core Micro Fission Core Propulsion Light Treads Treads Light Treads Leg Flexi-carbon Leg Wheel Wheel Utility Huge Storage Unit Device Seismic Detector Storage Huge Storage Unit Processor System Guard Hackware Hacking Suite Protection Light Armor Plating Weapon Heavy Assault Rifle Energy Cannon Subdweller Beam Cannon Ballistic Gun Heavy Assault Rifle Launcher Rocket Launcher Special Weapon Mining Laser Impact Weapon Power Maul Slashing Weapon Great Axe Special Melee Weapon Dirty Datajack Build | -11 -10 -10 -10 -9 -9 -6 -6 ------- Run | Yrd Mat Min Sub Rec Scr Fac Ext Slots Evolved 8 | . . . . . . 8 . Power 1 | . . . . . . 1 . Propulsion 2 | . . . . . . 2 . Utility 5 | . . . . . . 5 . Weapon . | . . . . . . . . Parts Attached 85 | 7 9 . 11 2 15 29 12 Power 12 | 1 . . 1 . 3 5 2 Engine 11 | 1 . . 1 . 3 4 2 Core 1 | . . . . . . 1 . Reactor . | . . . . . . . . Propulsion 23 | 2 1 . 3 . 3 9 5 Treads 8 | 2 . . 2 . 3 1 . Leg 13 | . . . . . . 8 5 Wheel 2 | . 1 . 1 . . . . Hover . | . . . . . . . . Flight . | . . . . . . . . Utility 23 | 2 4 . 3 . 5 6 3 Device 8 | 1 1 . 1 . 1 2 2 Storage 4 | 1 2 . . . 1 . . Processor 1 | . . . . . . 1 . Hackware 2 | . . . . . 1 1 . Protection 8 | . 1 . 2 . 2 2 1 Artifact . | . . . . . . . . Weapon 27 | 2 4 . 4 2 4 9 2 Energy Gun . | . . . . . . . . Energy Cannon 3 | . . . . 2 1 . . Ballistic Gun 13 | 2 2 . 3 . 1 5 . Ballistic Cannon . | . . . . . . . . Launcher 3 | . . . 1 . . 2 . Special Weapon 3 | . 1 . . . 1 . 1 Impact Weapon 1 | . . . . . . 1 . Slashing Weapon 2 | . . . . . . 1 1 Piercing Weapon . | . . . . . . . . Special Melee Weapon 2 | . 1 . . . 1 . . Unidentified Prototypes 4 | . . . 1 . . 3 . Corrupted Parts 2 | . . . . . 1 . 1 System Corruption 8 | . . . . . 3 . 5 Parts Lost 39 | . . . 4 . . 26 9 Power 8 | . . . 1 . . 6 1 Propulsion 11 | . . . 1 . . 8 2 Utility 12 | . . . 1 . . 8 3 Weapon 8 | . . . 1 . . 4 3 Highest Loss Streak 11 | . . . 3 . . 11 6 To Critical Strikes . | . . . . . . . . Average Backups 18 | 3 11 19 22 20 18 18 16 Power . | . 1 1 1 1 . . . Propulsion 3 | 1 2 4 5 4 3 1 4 Utility 4 | . 2 6 6 5 4 2 2 Weapon 6 | . 4 6 7 8 6 7 3 Tool/Special . | . . . . . . . . Unused Backups 30 | . 4 . 5 1 8 5 7 Power 4 | . . . 1 . 1 2 . Propulsion 7 | . . . 2 . 3 . 2 Utility 4 | . . . 1 1 . 1 1 Weapon 12 | . 4 . 1 . 4 2 1 Tool/Special 3 | . . . . . . . 3 Average Slot Usage (%) 92 | . 99 100 99 100 92 86 55 Engine 12 | . 14 14 13 14 14 9 4 Treads 15 | . 25 15 14 14 16 15 . Leg 2 | . . . . . . 7 17 Wheel 8 | . 2 12 13 14 11 . . Device 7 | . 7 14 11 4 . 13 8 Storage 11 | . 14 14 14 14 12 6 6 Hackware 1 | . . . . . . 5 . Protection 8 | . 6 . 2 9 12 9 3 Energy Cannon 6 | . . . . 19 14 . 2 Ballistic Gun 12 | . 25 28 20 8 6 10 2 Special Weapon 1 | . 2 . 6 . 1 . . Peak Build Rating 68 | 7 11 11 16 16 33 68 67 Average Rating 24 | 6 9 10 13 15 19 53 52 On Entrance 18 | . 7 10 11 16 15 33 59 Naked Turns . | . . . . . . . . Heaviest Build 123 | 13 92 90 95 104 109 123 118 Greatest Support 85 | 40 40 40 40 10 45 85 76 Greatest Overweight (x) 36 | . 5 5 9 10 36 3 2 Average Overweight (x) 5 | . . 4 8 9 7 1 1 Largest Inventory Capacity 25 | 8 25 25 25 25 25 25 25 Average Capacity 22 | 7 15 23 25 25 23 25 25 Most Carried 25 | 5 15 22 25 25 25 25 22 Average Carried 20 | 3 11 19 23 24 20 22 21 Final Capacity 25 | 8 15 25 25 25 25 25 25 Final Carried 25 | 5 15 22 25 24 24 20 22 Class Distribution -------------------- 49% | Mutant 36% | Commander-Mutant 12% | Scavenger-Mutant Dominant Class ---------------- Mutant | -10/Materials Mutant | -10/Mines Mutant | -10/Subcaves Mutant | -9/Recycling Commander-Mutant | -9/Scraptown Mutant | -6/Factory Scavenger-Mutant | -6/Extension Resources | -11 -10 -10 -10 -9 -9 -6 -6 ----------- Run | Yrd Mat Min Sub Rec Scr Fac Ext Matter Collected 3766 | 345 571 75 548 60 150 1525 492 Remotely . | . . . . . . . . Salvage Created 4565 | 161 552 128 303 194 . 2618 609 Parts 238 | 20 42 11 24 7 . 116 18 Haulers Intercepted 6 | . 2 . . . . 4 . Recyclers Shooed 6 | . . . . . . 6 . Parts Field Recycled . | . . . . . . . . Retrieved Matter . | . . . . . . . . Parts Self-Destructed 11 | . . . 11 . . . . Prevented . | . . . . . . . . Kills | -11 -10 -10 -10 -9 -9 -6 -6 ------- Run | Yrd Mat Min Sub Rec Scr Fac Ext Combat Hostiles Destroyed 67 | . 10 . 8 1 . 35 13 Melee 3 | . . . . . . . 3 Guns 45 | . 10 . 8 . . 23 4 Cannons 8 | . . . . 1 . 3 4 AOE 9 | . . . . . . 9 . Classes Destroyed 17 | 1 9 . 3 1 . 3 . Worker 13 | . 1 3 . . . 9 . Builder 7 | . 1 1 . . . 5 . Tunneler 10 | 8 . 1 . . . 1 . Hauler 6 | . 2 . . . . 4 . Recycler 5 | . 1 . . 2 . 2 . Mechanic 2 | . 1 . . . . 1 . Operator 2 | . 1 . . . . 1 . Turret 2 | . . . 2 . . . . Watcher 4 | . 2 . . . . 1 1 Swarmer 13 | . 6 . 3 . . . 4 Grunt 31 | . 4 . 1 . . 21 5 Brawler 3 | . . . . . . 2 1 Sentry 6 | . . . . 1 . 4 1 Hunter 3 | . . . . . . 2 1 Programmer 6 | . . . . . . 6 . Artisan 2 | . . . 2 . . . . Subdweller 4 | . . . 4 . . . . Savage 1 | . . . . . . . 1 Best Kill Streak 9 | 3 4 2 3 1 . 9 4 Combat Bots Only 6 | . 3 . 3 1 . 6 4 Max Kills in Single Turn 4 | 1 1 1 1 1 . 4 1 Gunslinging . | . . . . . . . . Exploded 2 | . . . . . . 2 . Melee 1 | . . . . . . . 1 Uniques/NPCs Destroyed . | . . . . . . . . Combat | -11 -10 -10 -10 -9 -9 -6 -6 -------- Run | Yrd Mat Min Sub Rec Scr Fac Ext Hostile Shots Fired 739 | . 44 . 68 2 . 446 179 Missed 230 | . 14 . 23 . . 143 50 Damage Taken 7194 | . 323 . 636 65 63 4559 1548 Core 1054 | . 56 . 126 11 . 643 218 Absorbed by Shields . | . . . . . . . . Ignored by Resistances 86 | . . . . . . 86 . Regen/Repaired (Parts) 437 | . . . . . 437 . . Core Remaining (%) 61 | 100 . . . . 22 . . Volleys Fired 329 | 17 69 5 58 9 . 153 18 Largest 2 | 2 2 2 2 2 . 2 2 Hottest 160 | 40 100 46 100 160 . 115 113 Shots Fired 588 | 34 130 10 82 18 . 282 32 Gun 483 | 34 122 10 48 12 . 241 16 Cannon 51 | . . . . 6 . 29 16 Launcher 26 | . . . 14 . . 12 . Special 28 | . 8 . 20 . . . . Kinetic 483 | 34 122 10 48 12 . 241 16 Thermal 79 | . 8 . 20 6 . 29 16 Explosive 26 | . . . 14 . . 12 . Electromagnetic . | . . . . . . . . Robot Hit Streak 15 | 5 11 4 6 10 . 15 14 Robot Miss Streak 5 | 3 4 2 3 2 . 5 4 Penetration Max 2 | . . . . . . 2 . Secondary Targets 2 | . 1 . . . . 1 . Max Gunslinging Chain 1 | . 1 . . . . 1 . Shots Hit Robots 365 | 18 62 6 29 11 . 189 50 Core Hits 226 | 9 26 5 24 5 . 122 35 Critical Kills 4 | 1 1 . . . . 2 . Critical Parts Destroyed 10 | . 1 . . . . 6 3 Critical Strikes 19 | 1 2 . . . . 8 8 Destroy 11 | 1 2 . . . . 8 . Smash 3 | . . . . . . . 3 Sever 5 | . . . . . . . 5 Melee Attacks 49 | . . . . . . 23 26 Impact 11 | . . . . . . 6 5 Slashing 35 | . . . . . . 17 18 Piercing 3 | . . . . . . . 3 Sneak Attacks 2 | . . . . . . . 2 Combat Hostiles 1 | . . . . . . . 1 Follow-up Attacks 2 | . . . . . . . 2 Damage Inflicted 10547 | 247 907 86 617 265 . 6963 1462 Guns 6374 | 242 865 86 457 146 . 4314 264 Cannons 1006 | . . . . 111 . 440 455 Explosions 2264 | . . . 160 . . 2104 . Melee 804 | . . . . . . 61 743 Ramming 75 | 5 18 . . 8 . 44 . Kinetic 6374 | 242 865 86 457 146 . 4314 264 Thermal 1045 | . 24 . . 111 . 455 455 Explosive 2234 | . . . 160 . . 2074 . Electromagnetic 15 | . . . . . . 15 . Impact 228 | . . . . . . . 228 Slashing 570 | . . . . . . 61 509 Piercing 6 | . . . . . . . 6 Highest Corruption 17 | . . . . . 3 11 17 Average Corruption 8 | . . . . . 3 6 13 Corruption Purged . | . . . . . . . . Corruption Blocked . | . . . . . . . . Effects 80 | . . . . . 7 38 35 Message Errors 19 | . . . . . 3 8 8 Matter Fused 23 | . . . . . 1 8 14 Heat Flow Errors 10 | . . . . . . 7 3 Energy Discharges 9 | . . . . . 1 5 3 Parts Rejected 1 | . . . . . . . 1 Parts Fused 2 | . . . . . 1 1 . Data Loss (minor) 4 | . . . . . . 3 1 Data Loss (major) 2 | . . . . . . 1 1 Misfires 2 | . . . . . . 2 . Alerts 3 | . . . . . 1 1 1 Misdirections 1 | . . . . . . . 1 Weapon Failures 4 | . . . . . . 2 2 Overload Shots . | . . . . . . . . Overflow Damage 230 | . . . . . . 79 151 Projectiles 11 | . . . . . . . 11 Explosions 58 | . . . . . . 58 . Melee 161 | . . . . . . 21 140 Knockbacks 2 | . . . . . . 1 1 Impact 2 | . . . . . . 1 1 Kinetic . | . . . . . . . . Secondary . | . . . . . . . . Self-Inflicted Damage 223 | . . . 18 4 . 201 . Shots 6 | . . . 1 . . 5 . Rammed 8 | 1 5 . . 1 . 1 . Targets Rammed 14 | 1 6 . . 1 . 6 . Kicked 5 | . . . . . . 5 . Crushed 1 | . 1 . . . . . . Highest Temperature 331 | . 64 . . 225 . 331 246 Average Temperature 50 | . 18 . . 95 . 51 61 Received Heat Transfer 1890 | . 117 . 186 9 . 1083 495 Effects 1 | . . . . . . 1 . Energy Bleed 1 | . . . . . . 1 . Siege Activations . | . . . . . . . . Martial Activations . | . . . . . . . . Shielding Activations . | . . . . . . . . Robots Disrupted . | . . . . . . . . Combat Hostiles . | . . . . . . . . Robots Corrupted 3 | . . . . . . . 3 Combat Hostiles 1 | . . . . . . . 1 Parts Fried 4 | . . . . . . . 4 Impact Corruptions 4 | . . . . . . . 4 Robots Melted . | . . . . . . . . Combat Hostiles . | . . . . . . . . Parts Melted . | . . . . . . . . Heat Transferred 1321 | . 50 . . 148 . 568 555 Parts Sabotaged . | . . . . . . . . Parts Stolen . | . . . . . . . . Parts Stripped . | . . . . . . . . Power Chain Reactions . | . . . . . . . . Alert | -11 -10 -10 -10 -9 -9 -6 -6 ------- Run | Yrd Mat Min Sub Rec Scr Fac Ext Maximum Alert Level 3 | . . . . . . 3 3 Low Security (%) 80 | 100 100 100 . 100 . 72 . Level 1 4 | . . . . . . 13 . Level 2 10 | . . . . . . 7 82 Level 3 4 | . . . . . . 6 17 Level 4 . | . . . . . . . . Level 5 . | . . . . . . . . High Security . | . . . . . . . . Max Security . | . . . . . . . . Peak Influence 974 | 15 97 10 . 169 . 974 755 Initial 473 | . . . . 169 . . 473 Average 153 | 1 27 . . 58 . 227 541 Influence Increases 4168 | 40 372 25 555 373 . 1944 859 Destroy 0b10 Robot/C 1840 | . 200 . 120 80 . 960 480 Destroy 0b10 Robot/NC 260 | 40 45 25 . 10 . 125 15 Destroy Leader 368 | . 48 . . . . 248 72 Allied During Kill 256 | . . . . 15 . 71 170 Successful Hack 94 | . 10 . . 31 . 32 21 Select Force Hacks 210 | . . . . 210 . . . Disable Machine 210 | . 45 . . . . 150 15 Anti-Garrison Action 150 | . . . . . . 150 . Destroy Structure 180 | . 9 . . 12 . 148 11 Partial Spotted 15 | . . . . 15 . . . Lose Combat Pursuer 585 | . 15 . 435 . . 60 75 Influence Decreases 2803 | 40 372 25 201 532 . 977 656 Time Decay 2030 | 40 372 25 143 492 . 572 386 Lost Part 360 | . . . 10 . . 260 90 Lost Ally 413 | . . . 48 40 . 145 180 Squads Dispatched 25 | . 2 . . . . 20 3 Investigation 2 | . . . . . . 1 1 Extermination 7 | . . . . . . 7 . Reinforcement 11 | . 2 . . . . 9 . Assault 4 | . . . . . . 2 2 Garrison 1 | . . . . . . 1 . Intercept . | . . . . . . . . Searches Triggered . | . . . . . . . . Construction Impeded 3 | . . . . . . 3 . Haulers Reinforced 2 | . . . . . . 2 . Active Scanning Responses . | . . . . . . . . Cargo Convoy Interrupts . | . . . . . . . . Stealth | -11 -10 -10 -10 -9 -9 -6 -6 --------- Run | Yrd Mat Min Sub Rec Scr Fac Ext Distress Signals 10 | . 1 . . . . 9 . Communications Jammed . | . . . . . . . . Distress Signals . | . . . . . . . . Times Spotted 140 | . 25 2 14 3 . 67 29 Peak Tracking Total 7 | . 4 2 6 1 . 7 6 Tactical Retreats 14 | . 1 . 5 . . 4 4 Traps | -11 -10 -10 -10 -9 -9 -6 -6 ------- Run | Yrd Mat Min Sub Rec Scr Fac Ext Traps Triggered 4 | . . . . . 1 . 3 Indirectly . | . . . . . . . . Trap Hack Attempts 7 | . 7 . . . . . . Triggered . | . . . . . . . . Disarmed 1 | . 1 . . . . . . Reprogrammed . | . . . . . . . . Reused . | . . . . . . . . Traps Extracted . | . . . . . . . . Installed 1 | . . . . . 1 . . Triggered . | . . . . . . . . Most Traps Carried 1 | . . . 1 1 1 . . Machines | -11 -10 -10 -10 -9 -9 -6 -6 ---------- Run | Yrd Mat Min Sub Rec Scr Fac Ext Machines Disabled 18 | . 3 . 3 . . 11 1 Max in Single Turn 4 | . 2 . 1 . . 4 1 Garrison Access 2 | . . . . . . 2 . Machines Repaired . | . . . . . . . . Machines Dismantled 1 | . . . . . . . 1 Machines Sabotaged . | . . . . . . . . Overloaded Fab Kills . | . . . . . . . . Hacking | -11 -10 -10 -10 -9 -9 -6 -6 --------- Run | Yrd Mat Min Sub Rec Scr Fac Ext Machines Accessed 26 | . 4 . 1 12 1 4 4 Terminals 15 | . 4 . . 5 . 2 4 Fabricators . | . . . . . . . . Repair Stations . | . . . . . . . . Recycling Units 8 | . . . . 7 . 1 . Scanalyzers . | . . . . . . . . Garrison Access 1 | . . . . . . 1 . Total Hacks 59 | . 16 . 1 19 4 10 9 Successful 33 | . 7 . 1 12 4 6 3 Failed 26 | . 9 . . 7 . 4 6 Catastrophic 1 | . . . . . . . 1 Database Lockouts . | . . . . . . . . Manual 38 | . 16 . . 19 . 3 . Terminals 44 | . 16 . . 12 . 7 9 Fabricators . | . . . . . . . . Repair Stations . | . . . . . . . . Recycling Units 8 | . . . . 7 . 1 . Scanalyzers . | . . . . . . . . Garrison Access 2 | . . . . . . 2 . Terminal Hacks 12 | . 2 . 1 . 4 2 3 Robot Analysis 6 | . 2 . . . 4 . . Open Door 3 | . . . . . . . 3 Alert Level 1 | . . . . . . 1 . Locate Traps 1 | . . . . . . 1 . Derelict Proto ID Bank 1 | . . . 1 . . . . Fabricator Hacks . | . . . . . . . . Repair Station Hacks . | . . . . . . . . Recycling Unit Hacks . | . . . . . . . . Scanalyzer . | . . . . . . . . Garrison Access Hacks 1 | . . . . . . 1 . Seal Access 1 | . . . . . . 1 . Unauthorized Hacks 20 | . 5 . . 12 . 3 . Terminals 12 | . 5 . . 5 . 2 . Botnet 3 | . . . . 1 . 2 . Operators 1 | . 1 . . . . . . Skim 8 | . 4 . . 4 . . . Fabricators . | . . . . . . . . Repair Stations 1 | . . . . . . 1 . Recycling Units 7 | . . . . 7 . . . Tunnel 7 | . . . . 7 . . . Scrapoids 1 | . . . . . . 1 . Scanalyzers . | . . . . . . . . Garrison Access . | . . . . . . . . Data Cores Recovered 1 | . . . . . . 1 . Used . | . . . . . . . . Hacking Detections 13 | . 4 . . 5 . 2 2 Full Trace Events 1 | . . . . . . . 1 Feedback Events 1 | . . . . . . . 1 Corruption 1 | . . . . . . . 1 Feedback Blocked . | . . . . . . . . Robot Schematics Acquired . | . . . . . . . . Robots Built . | . . . . . . . . Authchips . | . . . . . . . . Time . | . . . . . . . . Total Robot Build Rating . | . . . . . . . . Part Schematics Acquired . | . . . . . . . . Parts Built . | . . . . . . . . Authchips . | . . . . . . . . Time . | . . . . . . . . Total Part Build Rating . | . . . . . . . . Parts Repaired . | . . . . . . . . Time . | . . . . . . . . Parts Recycled . | . . . . . . . . Recycled Matter . | . . . . . . . . Retrieved Matter . | . . . . . . . . Retrieved Components . | . . . . . . . . Parts Scanalyzed . | . . . . . . . . Part Schematics Acquired . | . . . . . . . . Parts Damaged . | . . . . . . . . Bothacking | -11 -10 -10 -10 -9 -9 -6 -6 ------------ Run | Yrd Mat Min Sub Rec Scr Fac Ext Used RIF Installer . | . . . . . . . . Robots Hacked . | . . . . . . . . Non-combat . | . . . . . . . . Combat . | . . . . . . . . Robot Hacks Applied . | . . . . . . . . Relay Couplers Released 7 | . . . . . . 7 . Machine Destruction 3 | . . . . . . 3 . Programmers 4 | . . . . . . 4 . Fabnet Peak Effective % . | . . . . . . . . Robots Rewired 12 | . . . . 7 . . 5 Allies Hacked 2 | . . . . 2 . . . Hacks Repelled . | . . . . . . . . Allies | -11 -10 -10 -10 -9 -9 -6 -6 -------- Run | Yrd Mat Min Sub Rec Scr Fac Ext Total Allies 29 | . . . 6 7 . 5 11 Largest Group 9 | . . . 4 6 4 5 9 Highest-Rated Group 267 | . . . 76 106 64 143 267 Highest-Rated Ally 39 | . . . 19 34 21 31 39 Total Orders 2 | . . . . . 2 . . STAY 1 | . . . . . 1 . . FOLLOW 1 | . . . . . 1 . . Ally Attacks 189 | . . . 7 17 . 68 97 Total Damage 3189 | . . . 129 355 . 890 1815 Kills 34 | . . . 1 4 . 14 15 Allies Corrupted . | . . . . . . . . Allies Melted . | . . . . . . . . Intel | -11 -10 -10 -10 -9 -9 -6 -6 ------- Run | Yrd Mat Min Sub Rec Scr Fac Ext Active Infowar (turns) 5160 | 225 880 1054 298 . . 2703 . Seismic 5160 | 225 880 1054 298 . . 2703 . Robot Analysis Total 6 | . 2 . . . 4 . . Derelict Logs Recovered 7 | . . 1 1 . 5 . . Drone Launches . | . . . . . . . . Drone Recoveries . | . . . . . . . . Exploration | -11 -10 -10 -10 -9 -9 -6 -6 ------------- Run | Yrd Mat Min Sub Rec Scr Fac Ext Turns Passed 16532 | 322 1774 1054 2431 1718 5053 3270 910 Spaces Moved 6948 | 150 799 584 1024 692 2218 1129 352 Core 4 | 3 . . . . 1 . . Treads 1994 | 147 688 76 6 . 419 658 . Legs 823 | . . . . . . 471 352 Wheels 4127 | . 111 508 1018 692 1798 . . Hover . | . . . . . . . . Flight . | . . . . . . . . Fastest Speed 50 | 50 160 160 175 215 110 185 185 Average Speed 206 | 157 168 173 205 224 221 221 186 Slowest Speed 1850 | 160 320 175 320 230 1850 320 260 Overloaded Moves . | . . . . . . . . Propulsion Burnouts . | . . . . . . . . Robots Hopped . | . . . . . . . . Cave-ins Triggered . | . . . . . . . . Exploration Rate (%) 61 | 7 95 95 55 95 82 30 29 Regions Visited 7 Branch Regions 5 Pre-discovered Areas 10 | . . . 1 7 2 . . Known Exits Taken . | . . . . . . . . Unknown Exits Taken 7 | 1 1 1 1 1 1 1 . Scrap Searched 12 | . . 1 6 . 5 . . Spaces Dug 51 | . 7 . 2 . . 42 . Terrain Destroyed 234 | . 7 . 59 2 . 165 1 Melee 21 | . . . . . . 21 . Projectile 35 | . 7 . 2 2 . 23 1 AOE 178 | . . . 57 . . 121 . Terrain Rammed . | . . . . . . . . Walls Destroyed . | . . . . . . . . Machines Disabled . | . . . . . . . . Actions | -11 -10 -10 -10 -9 -9 -6 -6 --------- Run | Yrd Mat Min Sub Rec Scr Fac Ext Total 8415 | 197 1073 616 1226 834 2392 1559 518 Wait 578 | 18 153 18 83 57 31 163 55 Move 6941 | 149 798 583 1023 691 2217 1128 352 Hop . | . . . . . . . . Pick Up 111 | 5 12 7 17 1 52 16 1 Fast Attach 43 | 7 1 . 2 . 9 17 7 Attach 28 | . 1 . 5 . 4 15 3 Detach 17 | . 1 . 3 . 11 2 . Swap 82 | . 19 3 20 3 8 23 6 Drop 94 | . 6 . 15 1 59 13 . Fire 329 | 17 69 5 58 9 . 153 18 Melee 47 | . . . . . . 23 24 Ram 1 | . . . . 1 . . . Kick 5 | . . . . . . 5 . Crush 8 | 1 6 . . . . 1 . Escape Stasis 15 | . . . . . . . 15 Rewire 100 | . . . . 71 . . 29 Trap 8 | . 7 . . . 1 . . Miscellaneous 8 | . . . . . . . 8 Route ------- -11/Scrapyard -10/Materials (discovered 4 exits: [*Mat x3] / [*Min]) -10/Mines (discovered 3 exits: [*Mat x2] / *Sub) -10/Subcaves (discovered 3 exits: [*Mat x2] / *Rec) -9/Recycling (discovered 2 exits: [*Fac] / *Scr) -9/Scraptown (discovered 2 exits: *Fac x2) -6/Factory -6/Extension History --------- Turn | Location | Event 11 | -11/Scrapyard | Discovered new exit (range 13) 323 | -11/Scrapyard | Entered Materials 324 | -10/Materials | Build established: Mutant 769 | -10/Materials | Discovered new exit (range 11) 980 | -10/Materials | Discovered new exit (range 13) 1345 | -10/Materials | Discovered new exit (range 16) 1609 | -10/Materials | Discovered new exit (range 4) 2097 | -10/Materials | Entered Mines 2219 | -10/Mines | Received a Rocket Launcher from a helpful Derelict 2347 | -10/Mines | Found a hidden stash of uninstalled traps 2439 | -10/Mines | Discovered new exit (range 4) 2525 | -10/Mines | Joined a pair of Derelicts in attacking an 0b10 outpost 2787 | -10/Mines | Learned location of 1 exit from Materials 2787 | -10/Mines | Discovered new exit (range 6) 2850 | -10/Mines | Discovered new exit (range 8) 3151 | -10/Mines | Entered Subcaves 3152 | -10/Subcaves | Approached by a straggling Scientist 3199 | -10/Subcaves | A swath of the cavern ceiling suddenly collapsed 3322 | -10/Subcaves | Ambushed by Subdweller buried in earth 3360 | -10/Subcaves | Lost 3 parts (1p1n1u) 3560 | -10/Subcaves | Core integrity fell below 50% 3652 | -10/Subcaves | Discovered new exit (range 8) 3653 | -10/Subcaves | Shifting Twisted Machinery released Battle Rifle 3762 | -10/Subcaves | Visited triangular shrine 3775 | -10/Subcaves | Found Prototype Device 3775 | -10/Subcaves | Identified V3-11A's Pendant 3780 | -10/Subcaves | Befriended Subdweller 3867 | -10/Subcaves | Discovered new exit (range 12) 4380 | -10/Subcaves | Ambushed by angry Subdweller bent on revenge 4380 | -10/Subcaves | Befriended Subdweller 4507 | -10/Subcaves | Shifting Twisted Machinery released Battle Rifle 4558 | -10/Subcaves | Shifting Twisted Machinery released Sub. Monowheel 4618 | -10/Subcaves | Visited 4L-MR0's lab 4644 | -10/Subcaves | Found Powered Cannon 4670 | -10/Subcaves | Learned location of Storage (-9) 4749 | -10/Subcaves | A swath of the cavern ceiling suddenly collapsed 4765 | -10/Subcaves | Befriended Subdweller 5056 | -10/Subcaves | Disturbed a concealed Subdweller 5060 | -10/Subcaves | Befriended Subdweller 5165 | -10/Subcaves | Shifting Twisted Machinery released Sub. Beam Cannon 5336 | -10/Subcaves | Approached by friendly Subdweller 5370 | -10/Subcaves | Lost 5 allies 5391 | -10/Subcaves | Discovered new exit (range 13) 5437 | -10/Subcaves | Befriended Subdweller 5582 | -10/Subcaves | Entered Recycling 5582 | -9/Recycling | Accompanied by 1 ally 6200 | -9/Recycling | Discovered new exit (range 8) 6820 | -9/Recycling | Build established: Commander-Mutant 7223 | -9/Recycling | Scanned before Scraplab entrance 7255 | -9/Recycling | Entered Scraplab 7276 | -9/Recycling | Discovered new exit (range 2) 7300 | -9/Recycling | Entered Scraptown 7300 | -9/Scraptown | Accompanied by 4 allies 7609 | -9/Scraptown | Visited CR-KLE's Repair Center 7650 | -9/Scraptown | Visited SPCMW 7675 | -9/Scraptown | Visited Cyclists 7758 | -9/Scraptown | Visited TADAMA 7772 | -9/Scraptown | Heard Great Nut preacher, LISTEN AND RECITE! 7866 | -9/Scraptown | Scanned Subdweller tech in exchange for log data 7873 | -9/Scraptown | Learned Research garrison access intel 7875 | -9/Scraptown | Learned Factory garrison access intel 7878 | -9/Scraptown | Learned location of Quarantine (-3) 7880 | -9/Scraptown | Learned Factory stockpile data 8437 | -9/Scraptown | Visited UFD Registry 8437 | -9/Scraptown | Registered with UFD as "Scrapshell" 8556 | -9/Scraptown | Visited Chapter 10 8598 | -9/Scraptown | Visited DA-N13 Charitable Foundation 8607 | -9/Scraptown | Found DCF Scrap (28 items) 8655 | -9/Scraptown | Visited Junk Repository 8699 | -9/Scraptown | Visited Analyses Database 8759 | -9/Scraptown | Visited Scrapoid Research Area 8798 | -9/Scraptown | Visited Research Penetration Think Tank 9037 | -9/Scraptown | Visited Botcube Research 9412 | -9/Scraptown | Delivered V3-11A's Pendant to T0-NE2 in exchange for information 9595 | -9/Scraptown | Entered Cyclist Reading Room 9619 | -9/Scraptown | Warned about trapping Scraptown 9791 | -9/Scraptown | Build established: Scavenger-Mutant 9831 | -9/Scraptown | Discovered new exit (range 5) 9839 | -9/Scraptown | System corruption cleaned by C-Scrubber 10227 | -9/Scraptown | Build established: Commander-Mutant 10257 | -9/Scraptown | Delivered Scrap Shield to a Scientist 10606 | -9/Scraptown | Found Lrg. Botcube 11850 | -9/Scraptown | CR-KLE repaired 7 parts 12341 | -9/Scraptown | Discovered new exit (range 3) 12353 | -9/Scraptown | Entered Factory 12353 | -6/Factory | Accompanied by 4 allies 12353 | -6/Factory | Evolved 8 slots: Power x1, Propulsion x2, Utility x5 12355 | -6/Factory | Loaded intel: 4 garrison access locations 12683 | -6/Factory | Lost 4 allies 12792 | -6/Factory | Scrapoids reinforcements arrived? 13247 | -6/Factory | Build established: Mutant 14310 | -6/Factory | Lost 6 parts (1p4n1u) 14347 | -6/Factory | Found Powered Armor 14577 | -6/Factory | Build established: Scavenger-Mutant 15155 | -6/Factory | Garrison activated, responded to threat 15185 | -6/Factory | Core integrity fell below 50% 15207 | -6/Factory | Lost 11 parts (2p4n4u1w) 15226 | -6/Factory | System corruption reached 10% 15503 | -6/Factory | First assault squad dispatched 15597 | -6/Factory | Discovered new exit (range 15) 15623 | -6/Factory | Entered Extension 15927 | -6/Extension | Core integrity fell below 20% 15973 | -6/Extension | First assault squad dispatched 15982 | -6/Extension | Lost 6 parts (1p1n1u3w) 16098 | -6/Extension | Rescued a captive Derelict 16126 | -6/Extension | Rescued a captive Derelict 16165 | -6/Extension | Rescued a captive Derelict 16166 | -6/Extension | Rescued a captive Derelict 16428 | -6/Extension | Rescued a captive Derelict 16429 | -6/Extension | Rescued a captive Derelict 16496 | -6/Extension | Lost 8 allies 16533 | -6/Extension | Destroyed by G-50 Soldier with Backup Laser III Last Messages --------------- 16464_ IU-PWU(h) destroyed. 16467_ Acquired 5 matter. 16471_ Critical hit (Burn: +37). 16472_ M-28 Smith fits Backup Power III on G-50 Soldier. 16475_ Destroyed Adv. Heat Sink. 16483_ G-50 Soldier Hvy. Laser severed. 16485_ System corrupted: Matter fused (-7). 16485_ Multireflex Exoskeleton destroyed. 16485_ Power Maul follow-up attack on Y-54 Guardian. 16488_ Y-54 Guardian Flak Gun severed. 16490_ Adv. Heat Sink destroyed. 16491_ Y-54 Guardian destroyed. 16496_ G-67 Veteran Flexi-carbon Leg severed. 16496_ Power Maul follow-up attack on G-67 Veteran. 16496_ G-67 Veteran destroyed. 16502_ M-28 Smith repairs B-48 Gladiator. 16505_ VASVP8KW UQJ4OHISY